Cogmind - Beta 10.1 *** ADVENTURER MODE // 2020.10.21 @ 19:31:12 Player: Kane Result: Self-destructed Performance ------------- Evolutions (8) 4000 Regions Visited (16) 3200 Robots Destroyed (227) 1135 Value Destroyed (8616) 8616 Prototype IDs (57) 1140 Alien Tech Used (0) 0 Bonus (4011) 4011 TOTAL SCORE: 22102 Bonus ------- Triggered Max Security 1000 High Alert Combat Kills 829 Follower Combat Kills 515 Aligned with FarCom 300 Met Zhirov 300 Built Enhanced Grunts 300 A7 Reached Mainframe 300 Scanned by Researcher 500 Friendly Fire -33 Cogmind --------- Core Integrity 1091/1450 Matter 111/300 Energy 90/100 System Corruption 6% Temperature Cool (260) Movement Treading (160) Location -2/Testing Parts ------- > --- POWER (3) -------- (None) > --- PROPULSION (6) --- Improved Heavy Treads Improved Gyrokinetic Inverter > --- UTILITY (11) ----- Advanced Coolant Injector Large Storage Unit Spectral Analyzer Advanced Core Analyzer Advanced System Shield > --- WEAPON (3) ------- Enhanced Force Lance > --- INVENTORY (10) --- Advanced Hardlight Generator Advanced Shield Generator System Restoration Module Improved Recalibrator Hypervelocity Railgun Peak State ------------ > --- POWER ------------ Light Particle Reactor Light Particle Reactor Quantum Reactor > --- PROPULSION ------- Gravmag System Cooled Aerolev Unit Improved Antigrav System Combat Antigrav System Antigrav Array > --- UTILITY ---------- Advanced Power Amplifier Advanced Coolant Injector Large Storage Unit Triangulator Spectral Analyzer Advanced Targeting Computer Improved Melee Analysis Suite Advanced Core Analyzer Advanced Core Analyzer Advanced Transmission Jammer Reaction Control System > --- WEAPON ----------- Guided Micro-nuke Launcher Lance > --- INVENTORY -------- Particle Reactor Light Particle Reactor Improved Antigrav System Improved Gyrokinetic Inverter Advanced Hardlight Generator Advanced Shield Generator System Restoration Module Improved Recalibrator Compact HERF Cannon [Rating: 164] Favorites ----------- Power Light Nuclear Core Engine Angular Momentum Engine Power Core Light Nuclear Core Reactor Quantum Reactor Propulsion Gravmag Array Treads Improved Heavy Treads Leg Aluminum Leg Wheel Wheel Hover Unit Gravmag Array Flight Unit Nuclear Pulse Array Utility Medium Storage Unit Device Advanced Transmission Jammer Storage Medium Storage Unit Processor Improved Melee Analysis Suite Hackware Hacking Suite Protection Hardened Light Armor Plating Weapon Great Maul Energy Gun Precision Beam Rifle Energy Cannon Light EM Pulse Cannon Ballistic Gun AWS/Gauss Ballistic Cannon Gauss Cannon Launcher Proton Missile Launcher Special Weapon Improved Remote Datajack Impact Weapon Great Maul Slashing Weapon Ripper Piercing Weapon Lance Build | -11 -10 -10 -10 -9 -8 -7 -6 -5 -4 -4 -4 -4 -4 -3 -2 -2 ------- Run | Scr Mat Min Exi Min Mat Fac Fac Fac Fac Ext Cet Arc Hub Res Res Tes Slots Evolved 16 | . . . . . 4 2 2 2 2 . . . . 2 2 . Power 2 | . . . . . . . 1 . . . . . . . 1 . Propulsion 4 | . . . . . 2 . . 1 1 . . . . . . . Utility 9 | . . . . . 2 1 1 1 1 . . . . 2 1 . Weapon 1 | . . . . . . 1 . . . . . . . . . . Parts Attached 351 | 6 14 12 2 1 42 35 76 55 28 14 6 . . 34 14 12 Power 49 | 1 3 2 . . 3 2 12 6 5 3 5 . . 4 1 2 Engine 10 | 1 3 1 . . . . 4 1 . . . . . . . . Core 23 | . . 1 . . 3 2 8 4 4 1 . . . . . . Reactor 16 | . . . . . . . . 1 1 2 5 . . 4 1 2 Propulsion 92 | 2 . 4 1 1 14 13 9 23 7 2 1 . . 7 5 3 Treads 1 | . . . . . . . . . . . . . . . . 1 Leg 23 | 2 . 2 1 1 14 3 . . . . . . . . . . Wheel 2 | . . 2 . . . . . . . . . . . . . . Hover 59 | . . . . . . 10 9 17 7 2 1 . . 6 5 2 Flight 7 | . . . . . . . . 6 . . . . . 1 . . Utility 101 | 1 3 . . . 10 10 33 13 10 6 . . . 10 4 1 Device 58 | . . . . . 4 2 24 7 8 6 . . . 5 1 1 Storage 16 | 1 2 . . . 3 3 5 . . . . . . 2 . . Processor 12 | . 1 . . . . 1 2 1 2 . . . . 3 2 . Hackware 6 | . . . . . 1 1 2 1 . . . . . . 1 . Protection 9 | . . . . . 2 3 . 4 . . . . . . . . Artifact . | . . . . . . . . . . . . . . . . . Weapon 109 | 2 8 6 1 . 15 10 22 13 6 3 . . . 13 4 6 Energy Gun 25 | 1 1 3 . . 5 . 3 5 2 1 . . . 1 2 1 Energy Cannon 21 | . 3 1 . . 4 1 1 1 2 1 . . . 6 . 1 Ballistic Gun 20 | 1 2 1 1 . 1 1 7 2 . . . . . 3 1 . Ballistic Cannon 14 | . . 1 . . 3 3 4 2 1 . . . . . . . Launcher 9 | . 2 . . . 2 1 1 . . . . . . 1 1 1 Special Weapon 2 | . . . . . . . . 1 . . . . . 1 . . Impact Weapon 10 | . . . . . . 2 5 2 1 . . . . . . . Slashing Weapon 2 | . . . . . . . 1 . . 1 . . . . . . Piercing Weapon 6 | . . . . . . 2 . . . . . . . 1 . 3 Special Melee Weapon . | . . . . . . . . . . . . . . . . . Unidentified Prototypes 13 | . . . . . 4 1 1 1 1 . . . . 4 1 . Parts Lost 77 | . . 3 . . 6 9 5 17 6 7 1 . . 5 1 17 Power 12 | . . . . . . 1 . 2 2 1 1 . . 1 . 4 Propulsion 27 | . . . . . 3 3 2 6 2 3 . . . 2 1 5 Utility 19 | . . . . . 1 3 1 4 1 2 . . . 1 . 6 Weapon 19 | . . 3 . . 2 2 2 5 1 1 . . . 1 . 2 Highest Loss Streak 17 | . . 2 . . 3 2 2 7 3 4 1 . . 2 1 17 Average Slot Usage (%) 89 | . 99 96 97 85 93 97 84 86 83 84 87 89 89 82 91 77 Engine 2 | . 14 6 . . . . 5 3 . . . . . . . . Core 6 | . . 7 14 14 8 6 6 4 4 7 . . . . . . Reactor 1 | . . . . . . . . 2 5 2 9 10 10 8 13 10 Leg 11 | . 28 18 28 28 34 20 . . . . . . . . . . Hover 10 | . . . . . . 9 16 17 17 24 24 26 26 17 17 17 Device 7 | . . . . . 3 6 8 6 11 12 21 21 21 23 24 16 Storage 13 | . 27 28 28 28 21 14 7 5 5 5 5 5 5 4 4 4 Processor 7 | . . . . . . 5 10 13 18 12 10 10 10 13 17 14 Hackware 4 | . . . . . 7 2 10 9 5 5 5 5 5 1 . 4 Protection 1 | . . . . . 3 6 . 1 . . . . . . . . Energy Gun 1 | . 3 3 . . 3 2 . 3 4 3 . . . . 1 2 Energy Cannon 3 | . 13 10 11 . 2 . . . 2 4 5 5 5 3 2 . Ballistic Gun 4 | . 3 4 2 14 5 3 5 2 . . . . . 1 4 2 Ballistic Cannon 3 | . . 6 11 . 2 7 2 3 2 . . . . . . . Launcher 1 | . 7 . . . . 3 . . . . . . . . . . Impact Weapon 1 | . . . . . . 1 3 5 4 2 . . . . . . Naked Turns . | . . . . . . . . . . . . . . . . . Heaviest Build 96 | 10 22 25 27 27 41 55 54 69 69 72 79 71 71 82 96 94 Greatest Support 111 | 20 20 30 30 40 74 64 62 76 87 75 79 79 79 111 111 109 Greatest Overweight (x) 2 | . 1 2 . . 1 1 1 2 1 1 1 . . 1 1 2 Average Overweight (x) . | . . . . . . . . . . . . . . . . . Largest Inventory Capacity 14 | 6 10 10 10 10 14 14 10 10 10 10 10 10 10 10 10 10 Average Capacity 10 | 5 9 10 10 10 11 12 9 10 10 10 10 10 10 10 10 10 Most Carried 14 | 3 10 10 10 10 13 14 10 10 10 10 10 9 9 10 10 10 Average Carried 9 | 1 6 8 9 9 10 11 8 9 7 9 9 9 9 9 9 9 Final Capacity 14 | 6 10 10 10 10 14 8 10 10 10 10 10 10 10 10 10 10 Final Carried 13 | 3 7 9 10 10 13 8 10 8 9 9 9 9 9 10 10 5 Class Distribution -------------------- 50% | Hacker-Mutant 30% | Mutant 7% | Scavenger-Mutant 4% | Infiltrator-Mutant 4% | Generator-Mutant 3% | Skirmisher Dominant Class ---------------- Mutant | -10/Materials Mutant | -10/Mines Mutant | -10/Exiles Mutant | -9/Mines Hacker-Mutant | -8/Materials Mutant | -7/Factory Hacker-Mutant | -6/Factory Hacker-Mutant | -5/Factory Hacker-Mutant | -4/Factory Scavenger-Mutant | -4/Extension Scavenger-Mutant | -4/Cetus Scavenger-Mutant | -4/Archives Scavenger-Mutant | -4/Hub_04(d) Infiltrator-Mutant | -3/Research Generator-Mutant | -2/Research Generator-Mutant | -2/Testing Resources | -11 -10 -10 -10 -9 -8 -7 -6 -5 -4 -4 -4 -4 -4 -3 -2 -2 ----------- Run | Scr Mat Min Exi Min Mat Fac Fac Fac Fac Ext Cet Arc Hub Res Res Tes Matter Collected 5016 | 192 99 385 . 30 908 612 852 725 247 165 65 20 . 445 140 131 Remotely . | . . . . . . . . . . . . . . . . . Salvage Created 10075 | . 212 582 . 182 1893 863 1628 1476 500 465 217 40 156 1167 245 449 Parts 466 | . 22 28 . 11 115 53 58 47 31 13 7 . 4 54 13 10 Haulers Intercepted 13 | . 1 . . . 2 2 4 1 1 . . . . 2 . . Recyclers Shooed 5 | . . 2 . . 2 . . 1 . . . . . . . . Parts Field Recycled . | . . . . . . . . . . . . . . . . . Retrieved Matter . | . . . . . . . . . . . . . . . . . Parts Self-Destructed . | . . . . . . . . . . . . . . . . . Prevented . | . . . . . . . . . . . . . . . . . Kills | -11 -10 -10 -10 -9 -8 -7 -6 -5 -4 -4 -4 -4 -4 -3 -2 -2 ------- Run | Scr Mat Min Exi Min Mat Fac Fac Fac Fac Ext Cet Arc Hub Res Res Tes Combat Hostiles Destroyed 168 | . 9 13 . 13 38 18 20 19 6 8 3 . . 11 2 8 Melee 24 | . . . . . . 5 3 8 . 2 . . . 6 . . Guns 74 | . . 8 . 13 29 9 11 1 . . . . . 1 2 . Cannons 35 | . 2 4 . . 9 4 . 3 5 6 . . . 2 . . AOE 19 | . 7 1 . . . . 1 . . . 1 . . 1 . 8 Classes Destroyed 16 | . 5 2 . 1 2 2 . 1 . . . . . . . 3 Worker 7 | . 1 . . . . 1 4 1 . . . . . . . . Builder 6 | . . . . . 3 . 3 . . . . . . . . . Hauler 13 | . 1 . . . 2 2 4 1 1 . . . . 2 . . Recycler 7 | . 1 . . . 1 1 1 2 . . . . 1 . . . Mechanic 1 | . . . . . . . . . . . . . . . . 1 Operator 10 | . . . . . . 2 1 3 1 . . . . 1 1 1 Watcher 15 | . 2 . . . 3 4 3 1 1 . . . . . . 1 Swarmer 50 | . 9 3 . 6 8 9 7 5 . 2 . . . 1 . . Grunt 49 | . . 8 . . 20 4 3 2 1 4 . . . 1 . 6 Brawler 1 | . . . . . . . . . . . . . . . . 1 Duelist 1 | . . . . . . . . 1 . . . . . . . . Protector 1 | . . . . . . . . . . . . . . . . 1 Sentry 28 | . . 2 . . 8 1 3 3 1 2 . . . 6 2 . Hunter 6 | . . . . . 2 . 3 1 . . . . . . . . Programmer 22 | . . . . . . 4 4 7 4 . . . . 3 . . Cetus Guard 3 | . . . . . . . . . . . 3 . . . . . Assembled 7 | . . . . 7 . . . . . . . . . . . . Best Kill Streak 9 | . 6 3 . 5 8 4 4 6 2 2 3 . 1 3 1 9 Combat Bots Only 8 | . 3 3 . 5 7 3 2 6 2 2 3 . . 3 1 8 Max Kills in Single Turn 4 | . 4 1 . 1 2 2 3 2 1 1 1 . 1 1 1 2 Gunslinging . | . . . . . . . . . . . . . . . . . Exploded 2 | . 2 1 . . . . 1 . . . 1 . . 1 . 2 Melee 1 | . . . . . . 1 1 1 . 1 . . . 1 . . Uniques/NPCs Destroyed . | . . . . . . . . . . . . . . . . . Combat | -11 -10 -10 -10 -9 -8 -7 -6 -5 -4 -4 -4 -4 -4 -3 -2 -2 -------- Run | Scr Mat Min Exi Min Mat Fac Fac Fac Fac Ext Cet Arc Hub Res Res Tes Damage Taken 12306 | . 158 447 . 72 1383 1345 1796 2615 609 750 123 . 57 1087 127 1737 Core 1787 | . 1 104 . 14 164 136 329 365 98 72 20 . 12 113 . 359 Absorbed by Shields 456 | . . . . . . . 9 . . 10 96 . . . . 341 Core Remaining (%) 74 | 100 . . . 52 70 80 61 63 . . . . 82 91 . . Volleys Fired 312 | . 29 42 . . 60 48 12 8 20 16 5 3 2 43 11 13 Largest 3 | . 2 2 . . 2 3 2 2 2 2 1 1 1 2 2 2 Hottest 159 | . 116 116 . . 130 142 119 101 155 155 110 110 110 159 153 134 Shots Fired 642 | . 36 72 . 23 168 103 64 24 39 19 5 3 2 50 17 17 Gun 376 | . 15 46 . 23 104 54 59 12 20 3 . . . 17 14 9 Cannon 231 | . 11 26 . . 60 44 1 12 19 16 5 3 2 29 3 . Launcher 35 | . 10 . . . 4 5 4 . . . . . . 4 . 8 Special . | . . . . . . . . . . . . . . . . . Kinetic 376 | . 14 26 . 23 116 80 57 21 7 . . . . 17 11 4 Thermal 148 | . 10 32 . . 44 17 3 . 12 12 . . . 7 6 5 Explosive 19 | . 10 . . . 1 . . . . . . . . . . 8 Electromagnetic 99 | . 2 14 . . 7 6 4 3 20 7 5 3 2 26 . . Robot Hit Streak 36 | . 8 29 . 28 31 20 27 8 7 9 5 8 10 17 27 36 Robot Miss Streak 3 | . 2 3 . . 2 2 3 1 1 2 . . . 2 . 1 Penetration Max 1 | . . . . . 1 1 . 1 . . . . . . . . Secondary Targets 1 | . . 1 . . . . . . . . . . . . . . Max Gunslinging Chain 1 | . . 1 . . . . . . . . . . . . . . Autonomous 148 | . . . . 23 65 . 50 10 . . . . . . . . Shots Hit Robots 795 | . 18 62 . 23 130 107 122 132 59 31 5 3 5 63 17 18 Core Hits 351 | . 19 26 . 13 65 42 38 36 21 16 2 2 2 30 10 29 Critical Hits 47 | . . . . 1 15 8 1 2 1 2 . . . 9 7 1 Critical Kills 22 | . . . . . 9 5 1 1 . 1 . . . 2 2 1 Critical Parts Destroyed 18 | . . . . 1 6 3 . 1 . 1 . . . 3 3 . Melee Attacks 296 | . . . . . . 36 68 117 31 16 . . 3 20 . 5 Impact 221 | . . . . . . 23 49 117 31 1 . . . . . . Slashing 42 | . . . . . . . 19 . . 15 . . 3 5 . . Piercing 33 | . . . . . . 13 . . . . . . . 15 . 5 Sneak Attacks 28 | . . . . . . 3 11 8 1 . . . 2 3 . . Combat Hostiles 6 | . . . . . . . 2 2 . . . . . 2 . . Follow-up Attacks . | . . . . . . . . . . . . . . . . . Damage Inflicted 26478 | . 840 1040 . 679 3535 2643 4763 4107 1697 1168 528 132 351 2279 271 2445 Guns 6574 | . 116 423 . 679 2229 690 1425 264 194 38 . . . 224 147 145 Cannons 5028 | . 123 462 . . 911 716 . 314 648 532 149 132 82 835 124 . Explosions 4576 | . 601 155 . . 395 100 662 . . . 379 . . 198 . 2086 Melee 10300 | . . . . . . 1137 2676 3529 855 598 . . 269 1022 . 214 Ramming . | . . . . . . . . . . . . . . . . . Kinetic 7028 | . 92 271 . 679 2357 1127 1377 551 237 . . . . 224 89 24 Thermal 4075 | . 87 493 . . 759 255 626 . 411 464 379 . . 298 182 121 Explosive 2959 | . 601 . . . 272 . . . . . . . . . . 2086 Electromagnetic 2116 | . 60 276 . . 147 124 84 27 194 106 149 132 82 735 . . Impact 6922 | . . . . . . 629 1868 3529 855 41 . . . . . . Slashing 1816 | . . . . . . . 808 . . 557 . . 269 182 . . Piercing 1562 | . . . . . . 508 . . . . . . . 840 . 214 Highest Corruption 17 | . . . . . 5 4 6 17 3 1 . . . 1 . 6 Average Corruption 5 | . . . . . 5 3 4 13 2 1 . . . 1 . 4 Corruption Purged 21 | . . . . . . . 6 12 2 1 . . . . . . Effects 161 | . . . . . 27 15 46 61 5 . . . . 4 . 3 Message Errors 37 | . . . . . 5 5 13 10 . . . . . 3 . 1 Matter Fused 30 | . . . . . 4 2 10 12 2 . . . . . . . Heat Flow Errors 12 | . . . . . 2 3 4 1 1 . . . . . . 1 Energy Discharges 21 | . . . . . 5 2 9 3 2 . . . . . . . Parts Rejected 2 | . . . . . 1 . . 1 . . . . . . . . Data Loss (minor) 17 | . . . . . 4 1 5 7 . . . . . . . . Data Loss (major) 6 | . . . . . 2 . 1 3 . . . . . . . . Misfires 4 | . . . . . 1 . . 3 . . . . . . . . Misdirections 13 | . . . . . . . . 13 . . . . . . . . Targeting Errors 17 | . . . . . 3 1 4 7 . . . . . 1 . 1 Weapon Failures 2 | . . . . . . 1 . 1 . . . . . . . . Overload Shots . | . . . . . . . . . . . . . . . . . Overflow Damage 1801 | . 32 18 . . 52 147 670 521 46 13 8 33 31 157 . 73 Projectiles 136 | . 9 . . . 22 47 . . 6 . . 33 . 19 . . Explosions 403 | . 23 18 . . 30 . 175 . . . 8 . . 76 . 73 Melee 1262 | . . . . . . 100 495 521 40 13 . . 31 62 . . Knockbacks 38 | . . 1 . . 7 8 4 12 6 . . . . . . . Impact 16 | . . . . . . 1 4 8 3 . . . . . . . Kinetic 19 | . . 1 . . 6 6 . 3 3 . . . . . . . Secondary 3 | . . . . . 1 1 . 1 . . . . . . . . Self-Inflicted Damage 264 | . 14 8 . . 17 62 19 . . . . . . 96 . 48 Shots 12 | . 2 1 . . 2 2 1 . . . . . . 3 . 1 Rammed . | . . . . . . . . . . . . . . . . . Targets Rammed . | . . . . . . . . . . . . . . . . . Kicked . | . . . . . . . . . . . . . . . . . Crushed . | . . . . . . . . . . . . . . . . . Highest Temperature 514 | . 90 243 . . 511 357 267 289 514 246 198 198 197 197 197 198 Average Temperature 102 | . 36 84 . . 166 84 85 133 124 91 88 145 93 72 80 108 Received Heat Transfer 2497 | . . 243 . . 639 306 319 156 78 239 . . 30 126 . 361 Effects 24 | . . 1 . . 13 1 1 4 4 . . . . . . . Shutdowns 2 | . . . . . 1 . . . 1 . . . . . . . Energy Bleed 2 | . . . . . . 1 1 . . . . . . . . . Interference 7 | . . 1 . . 2 . . 4 . . . . . . . . Matter Decay 1 | . . . . . 1 . . . . . . . . . . . Short Circuit 5 | . . . . . 3 . . . 2 . . . . . . . Damage (minor) 3 | . . . . . 2 . . . 1 . . . . . . . Damage (major) 4 | . . . . . 4 . . . . . . . . . . . Siege Activations . | . . . . . . . . . . . . . . . . . Robots Corrupted 5 | . . . . . . . . . . . 2 . . 3 . . Combat Hostiles 3 | . . . . . . . . . . . 2 . . 1 . . Parts Fried 41 | . . 2 . . 1 1 14 9 3 . 1 4 . 6 . . Impact Corruptions 60 | . . . . . . 4 20 31 5 . . . . . . . Robots Melted . | . . . . . . . . . . . . . . . . . Combat Hostiles . | . . . . . . . . . . . . . . . . . Parts Melted 4 | . . . . . 2 . . . . 1 . . . . . 1 Heat Transferred 5113 | . 185 1162 . . 1419 555 424 . 250 300 250 . . 235 185 148 Parts Sabotaged 3 | . . . . . . . . . . . . . . . . 3 Parts Stolen . | . . . . . . . . . . . . . . . . . Parts Stripped . | . . . . . . . . . . . . . . . . . Power Chain Reactions 8 | . 1 2 . . 1 2 . . . . 1 . . 1 . . Missiles Intercepted . | . . . . . . . . . . . . . . . . . Alert | -11 -10 -10 -10 -9 -8 -7 -6 -5 -4 -4 -4 -4 -4 -3 -2 -2 ------- Run | Scr Mat Min Exi Min Mat Fac Fac Fac Fac Ext Cet Arc Hub Res Res Tes Peak Influence 1931 | . 182 154 . 90 709 244 591 190 55 254 234 28 57 165 155 1931 Initial 218 | . . 9 . . . 218 44 39 8 . 123 23 7 25 56 . Average 138 | . 67 51 . 46 439 78 114 67 21 69 124 27 18 62 50 1722 Maximum Alert Level 5 | . . . . . 3 1 2 . . 1 1 . . . . 5 Low Security (%) 84 | 100 100 100 . 100 17 93 80 100 100 96 78 100 100 100 100 . Level 1 5 | . . . . . 12 6 13 . . 3 21 . . . . . Level 2 8 | . . . . . 66 . 6 . . . . . . . . . Level 3 . | . . . . . 4 . . . . . . . . . . . Level 4 . | . . . . . . . . . . . . . . . . . Level 5 . | . . . . . . . . . . . . . . . . . High Security . | . . . . . . . . . . . . . . . . . Max Security 1 | . . . . . . . . . . . . . . . . 99 Squads Dispatched 54 | . . . . . 8 9 7 7 2 . . . 2 6 1 12 Investigation 7 | . . . . . 2 2 . 2 . . . . . . 1 . Extermination 14 | . . . . . . 4 3 3 2 . . . . 2 . . Reinforcement 18 | . . . . . 3 3 4 2 . . . . 2 4 . . Assault 13 | . . . . . 1 . . . . . . . . . . 12 Garrison 2 | . . . . . 2 . . . . . . . . . . . Intercept . | . . . . . . . . . . . . . . . . . Construction Impeded 4 | . . . . . 2 . 1 . . . . . . 1 . . Haulers Reinforced 6 | . . . . . . . 3 . . . . . 1 2 . . Stealth | -11 -10 -10 -10 -9 -8 -7 -6 -5 -4 -4 -4 -4 -4 -3 -2 -2 --------- Run | Scr Mat Min Exi Min Mat Fac Fac Fac Fac Ext Cet Arc Hub Res Res Tes Distress Signals 14 | . 2 . . . 4 2 1 1 . 1 2 . 1 . . . Communications Jammed 47 | . . . . . . . . 3 27 10 3 . . . . 4 Distress Signals 47 | . . . . . . . . 3 27 10 3 . . . . 4 Times Spotted 344 | . 15 13 . 12 49 41 30 43 9 21 17 . 10 12 3 69 Peak Tracking Total 43 | . 4 3 . 4 6 4 6 8 3 8 11 . 7 3 1 43 Tactical Retreats 25 | . 1 . . . 4 6 4 7 . 3 . . . . . . Traps | -11 -10 -10 -10 -9 -8 -7 -6 -5 -4 -4 -4 -4 -4 -3 -2 -2 ------- Run | Scr Mat Min Exi Min Mat Fac Fac Fac Fac Ext Cet Arc Hub Res Res Tes Traps Triggered 17 | . 1 . . . . 6 6 1 . 2 . . . . . 1 Indirectly 3 | . . . . . . 3 . . . . . . . . . . Trap Hack Attempts . | . . . . . . . . . . . . . . . . . Triggered . | . . . . . . . . . . . . . . . . . Disarmed . | . . . . . . . . . . . . . . . . . Reprogrammed . | . . . . . . . . . . . . . . . . . Reused . | . . . . . . . . . . . . . . . . . Traps Extracted . | . . . . . . . . . . . . . . . . . Installed . | . . . . . . . . . . . . . . . . . Triggered 2 | . . . . . . 1 . 1 . . . . . . . . Machines | -11 -10 -10 -10 -9 -8 -7 -6 -5 -4 -4 -4 -4 -4 -3 -2 -2 ---------- Run | Scr Mat Min Exi Min Mat Fac Fac Fac Fac Ext Cet Arc Hub Res Res Tes Machines Disabled 26 | . . . . 1 4 6 7 1 . 2 . . . . . 5 Max in Single Turn 3 | . . . . 1 1 3 3 1 . . . . . . . 2 Garrison Access 4 | . . . . . 1 . 2 . . . . . . 1 . . Machines Sabotaged . | . . . . . . . . . . . . . . . . . Garrisons Compromised . | . . . . . . . . . . . . . . . . . Overloaded Fab Kills . | . . . . . . . . . . . . . . . . . Fab Network Shutdowns 1 | . . . . . . . 1 . . . . . . . . . Hacking | -11 -10 -10 -10 -9 -8 -7 -6 -5 -4 -4 -4 -4 -4 -3 -2 -2 --------- Run | Scr Mat Min Exi Min Mat Fac Fac Fac Fac Ext Cet Arc Hub Res Res Tes Machines Accessed 93 | . 9 1 5 . 7 10 16 10 4 14 3 . 1 7 6 . Terminals 54 | . 7 1 . . 4 5 6 6 2 13 3 . 1 3 3 . Fabricators 8 | . . . . . . 1 2 2 . . . . . 3 . . Repair Stations 6 | . . . . . 1 1 1 1 2 . . . . . . . Recycling Units 7 | . 2 . . . . . 3 . . 1 . . . . 1 . Scanalyzers 9 | . . . . . 1 3 2 1 . . . . . . 2 . Garrison Access 4 | . . . . . 1 . 2 . . . . . . 1 . . Total Hacks 271 | . 30 4 31 . 27 25 37 26 14 39 6 . 1 18 13 . Successful 181 | . 21 4 31 . 20 13 30 13 6 23 4 . . 9 7 . Failed 90 | . 9 . . . 7 12 7 13 8 16 2 . 1 9 6 . Catastrophic 13 | . . . . . 1 2 2 2 . 2 . . 1 1 2 . Database Lockouts . | . . . . . . . . . . . . . . . . . Manual 50 | . . . 1 . . 10 8 4 8 11 5 1 . 1 1 . Terminals 154 | . 23 4 . . 16 12 17 16 9 37 6 . 1 8 5 . Fabricators 19 | . . . . . . 2 5 5 . . . . . 7 . . Repair Stations 14 | . . . . . 2 3 2 2 5 . . . . . . . Recycling Units 16 | . 7 . . . . . 5 . . 2 . . . . 2 . Scanalyzers 31 | . . . . . 8 8 6 3 . . . . . . 6 . Garrison Access 6 | . . . . . 1 . 2 . . . . . . 3 . . Terminal Hacks 115 | . 15 4 31 . 9 2 12 7 4 21 4 . . 4 2 . Record 38 | . 3 3 30 . . . . . . . 1 . . 1 . . Part Schematic 6 | . . . . . . . 4 1 . 1 . . . . . . Robot Analysis 5 | . . . . . . . . . . 4 1 . . . . . Prototype ID Bank 9 | . 2 . . . . . 1 2 . 1 . . . 2 1 . Open Door 11 | . . . . . . . . . . 10 1 . . . . . Branch Access Points 2 | . 1 . . . . . . 1 . . . . . . . . Emergency Access Points 1 | . . . . . 1 . . . . . . . . . . . Alert Level 4 | . . 1 . . 2 . . . . . . . . 1 . . Unreport Threat 14 | . . . . . . 1 4 2 3 2 1 . . . 1 . Locate Traps 3 | . 2 . . . . . . 1 . . . . . . . . Dispatch Records 3 | . . . . . 1 . 1 . . 1 . . . . . . Maintenance Status 1 | . . . . . 1 . . . . . . . . . . . Transport Status 1 | . 1 . . . . . . . . . . . . . . . Investigation Status 1 | . 1 . . . . . . . . . . . . . . . Reinforcement Status 2 | . 1 . . . . . . . . 1 . . . . . . Assault Status 2 | . 1 . . . 1 . . . . . . . . . . . Recall Investigation 4 | . . . . . 1 1 2 . . . . . . . . . Recall Assault 1 | . . . . . 1 . . . . . . . . . . . Hauler Manifests 2 | . 1 . . . . . . . . 1 . . . . . . Registered Components 2 | . 1 . . . . . . . 1 . . . . . . . Zone Layout 2 | . 1 . . . 1 . . . . . . . . . . . EX-Prototype ID Bank 1 | . . . 1 . . . . . . . . . . . . . Fabricator Hacks 13 | . . . . . . 2 4 3 . . . . . 4 . . Load Schematic 5 | . . . . . . 1 1 1 . . . . . 2 . . Build 8 | . . . . . . 1 3 2 . . . . . 2 . . Repair Station Hacks 9 | . . . . . 2 2 2 1 2 . . . . . . . Scan Component 5 | . . . . . 1 1 1 1 1 . . . . . . . Repair 4 | . . . . . 1 1 1 . 1 . . . . . . . Recycling Unit Hacks 12 | . 6 . . . . . 4 . . 2 . . . . . . Recycle Component 2 | . 2 . . . . . . . . . . . . . . . Process 2 | . 2 . . . . . . . . . . . . . . . Report Inventory 6 | . 2 . . . . . 3 . . 1 . . . . . . Retrieve Components 2 | . . . . . . . 1 . . 1 . . . . . . Scanalyzer 28 | . . . . . 8 7 6 2 . . . . . . 5 . Insert Component 14 | . . . . . 4 4 3 1 . . . . . . 2 . Analyze 14 | . . . . . 4 3 3 1 . . . . . . 3 . Garrison Access Hacks 4 | . . . . . 1 . 2 . . . . . . 1 . . Seal Access 4 | . . . . . 1 . 2 . . . . . . 1 . . Unauthorized Hacks . | . . . . . . . . . . . . . . . . . Terminals . | . . . . . . . . . . . . . . . . . Fabricators . | . . . . . . . . . . . . . . . . . Repair Stations . | . . . . . . . . . . . . . . . . . Recycling Units . | . . . . . . . . . . . . . . . . . Scanalyzers . | . . . . . . . . . . . . . . . . . Garrison Access . | . . . . . . . . . . . . . . . . . Data Cores Recovered 3 | . . . . . . . . 1 1 . . . . . 1 . Used 2 | . . . . . . . . 1 1 . . . . . . . Hacking Detections 70 | . 7 . . . 6 8 10 9 4 11 2 . 1 6 6 . Full Trace Events 8 | . 1 . . . 2 2 . 2 . . . . . . 1 . Feedback Events . | . . . . . . . . . . . . . . . . . Feedback Blocked . | . . . . . . . . . . . . . . . . . Robot Schematics Acquired . | . . . . . . . . . . . . . . . . . Robots Built 3 | . . . . . . . 3 . . . . . . . . . Matter 285 | . . . . . . . 285 . . . . . . . . . Time 76 | . . . . . . . 76 . . . . . . . . . Total Robot Build Rating 15 | . . . . . . . 15 . . . . . . . . . Part Schematics Acquired 17 | . . . . . 2 3 7 2 . 1 . . . . 2 . Parts Built 9 | . . . . . . 2 2 3 . . . . . 2 . . Matter 1352 | . . . . . . 168 380 424 . . . . . 380 . . Time 319 | . . . . . . 42 94 89 . . . . . 94 . . Total Part Build Rating 47 | . . . . . . 8 10 19 . . . . . 10 . . Parts Repaired 4 | . . . . . 1 1 1 . 1 . . . . . . . Time 144 | . . . . . 53 22 44 . 25 . . . . . . . Parts Recycled 2 | . 2 . . . . . . . . . . . . . . . Recycled Matter 370 | . 370 . . . . . . . . . . . . . . . Retrieved Matter . | . . . . . . . . . . . . . . . . . Retrieved Components 12 | . . . . . . . 9 . . 3 . . . . . . Parts Scanalyzed 12 | . . . . . 3 3 3 1 . . . . . . 2 . Part Schematics Acquired 11 | . . . . . 2 3 3 1 . . . . . . 2 . Parts Damaged 1 | . . . . . . 1 . . . . . . . . . . Bothacking | -11 -10 -10 -10 -9 -8 -7 -6 -5 -4 -4 -4 -4 -4 -3 -2 -2 ------------ Run | Scr Mat Min Exi Min Mat Fac Fac Fac Fac Ext Cet Arc Hub Res Res Tes Used RIF Installer . | . . . . . . . . . . . . . . . . . Robots Hacked . | . . . . . . . . . . . . . . . . . Non-combat . | . . . . . . . . . . . . . . . . . Combat . | . . . . . . . . . . . . . . . . . Robot Hacks Applied . | . . . . . . . . . . . . . . . . . Relay Couplers Released . | . . . . . . . . . . . . . . . . . Robots Rewired . | . . . . . . . . . . . . . . . . . Allies Hacked . | . . . . . . . . . . . . . . . . . Hacks Repelled . | . . . . . . . . . . . . . . . . . Allies | -11 -10 -10 -10 -9 -8 -7 -6 -5 -4 -4 -4 -4 -4 -3 -2 -2 -------- Run | Scr Mat Min Exi Min Mat Fac Fac Fac Fac Ext Cet Arc Hub Res Res Tes Total Allies 28 | . . 2 . 3 . . 3 . . 15 5 . . . . . Largest Group 9 | . . 2 . 3 . . 3 . . 9 7 . . . . . Highest-Rated Group 633 | . . 41 . 40 . . 87 . . 390 633 . . . . . Highest-Rated Ally 156 | . . 31 . 16 . . 29 . . 156 156 . . . . . Total Orders 1 | . . . . . . . . . . . 1 . . . . . GUARD 1 | . . . . . . . . . . . 1 . . . . . Ally Attacks 144 | . . 3 . 27 . . 23 . . 62 29 . . . . . Total Damage 3290 | . . 22 . 282 . . 401 . . 1702 883 . . . . . Kills 26 | . . . . 6 . . 6 . . 12 2 . . . . . Allies Corrupted . | . . . . . . . . . . . . . . . . . Allies Melted 1 | . . . . . . . . . . 1 . . . . . . Intel | -11 -10 -10 -10 -9 -8 -7 -6 -5 -4 -4 -4 -4 -4 -3 -2 -2 ------- Run | Scr Mat Min Exi Min Mat Fac Fac Fac Fac Ext Cet Arc Hub Res Res Tes Robot Analysis Total 5 | . . . . . . . . . . 4 1 . . . . . Derelict Logs Recovered 4 | . . 1 . 3 . . . . . . . . . . . . Drone Launches . | . . . . . . . . . . . . . . . . . Drone Recoveries . | . . . . . . . . . . . . . . . . . Exploration | -11 -10 -10 -10 -9 -8 -7 -6 -5 -4 -4 -4 -4 -4 -3 -2 -2 ------------- Run | Scr Mat Min Exi Min Mat Fac Fac Fac Fac Ext Cet Arc Hub Res Res Tes Turns Passed 15866 | 95 1009 980 759 962 1520 1892 3269 1936 660 724 214 50 99 998 447 252 Spaces Moved 13521 | 71 670 704 573 723 883 1476 2939 1669 555 671 290 68 182 1157 570 320 Core 2 | 2 . . . . . . . . . . . . . . . . Treads . | . . . . . . . . . . . . . . . . . Legs 4087 | 69 670 424 573 723 883 745 . . . . . . . . . . Wheels 280 | . . 280 . . . . . . . . . . . . . . Hover 9145 | . . . . . . 731 2939 1662 555 671 290 68 182 1157 570 320 Flight 7 | . . . . . . . . 7 . . . . . . . . Fastest Speed 42 | 50 120 80 130 130 120 48 48 48 45 45 42 42 42 42 46 46 Average Speed 76 | 118 134 113 130 130 125 88 53 52 52 55 45 42 42 52 61 54 Slowest Speed 200 | 120 150 150 130 130 155 156 110 200 106 104 102 42 42 106 118 150 Overloaded Moves . | . . . . . . . . . . . . . . . . . Propulsion Burnouts . | . . . . . . . . . . . . . . . . . Robots Hopped . | . . . . . . . . . . . . . . . . . Cave-ins Triggered . | . . . . . . . . . . . . . . . . . Exploration Rate (%) 55 | 4 91 99 93 100 48 40 53 43 13 84 89 73 26 38 17 27 Regions Visited 16 Branch Regions 8 Pre-discovered Areas 3 | . . 1 1 1 . . . . . . . . . . . . Known Exits Taken 1 | . 1 . . . . . . . . . . . . . . . Unknown Exits Taken 15 | 1 . 1 1 1 1 1 1 1 1 1 1 1 1 1 1 . Scrap Searched 4 | . . 2 . 2 . . . . . . . . . . . . Spaces Dug 50 | . 31 . . . . . . . . . . . . . . 19 Terrain Destroyed 328 | . 59 6 . 8 63 48 36 3 1 . 16 . . 11 . 77 Melee . | . . . . . . . . . . . . . . . . . Projectile 84 | . . . . 8 51 8 10 3 1 . . . . 2 . 1 AOE 244 | . 59 6 . . 12 40 26 . . . 16 . . 9 . 76 Terrain Rammed . | . . . . . . . . . . . . . . . . . Walls Destroyed . | . . . . . . . . . . . . . . . . . Machines Disabled . | . . . . . . . . . . . . . . . . . Actions | -11 -10 -10 -10 -9 -8 -7 -6 -5 -4 -4 -4 -4 -4 -3 -2 -2 --------- Run | Scr Mat Min Exi Min Mat Fac Fac Fac Fac Ext Cet Arc Hub Res Res Tes Total 18027 | 79 739 821 590 746 1191 1922 4485 2516 816 979 365 85 197 1478 651 367 Wait 3064 | . 13 41 . 15 161 271 1270 603 158 233 61 15 11 166 41 5 Move 13505 | 70 669 703 572 722 882 1475 2938 1668 554 670 289 67 181 1156 569 320 Hop . | . . . . . . . . . . . . . . . . . Pick Up 209 | 3 9 12 8 4 30 25 37 29 11 7 3 . . 23 4 4 Fast Attach 93 | 6 1 . . . 1 6 16 17 10 7 1 . . 14 9 5 Attach 123 | . . 5 1 . 13 14 23 26 10 5 1 . . 15 3 7 Detach 31 | . . 2 . . . 2 7 7 5 1 . . . 5 2 . Swap 135 | . 13 7 1 1 28 15 37 12 8 2 4 . . 5 2 . Drop 209 | . 5 8 8 4 16 25 50 29 9 9 1 . . 31 10 4 Fire 312 | . 29 42 . . 60 48 12 8 20 16 5 3 2 43 11 13 Melee 296 | . . . . . . 36 68 117 31 16 . . 3 20 . 5 Ram . | . . . . . . . . . . . . . . . . . Kick . | . . . . . . . . . . . . . . . . . Crush . | . . . . . . . . . . . . . . . . . Escape Stasis 49 | . . . . . . 5 27 . . 13 . . . . . 4 Rewire 1 | . . 1 . . . . . . . . . . . . . . Trap . | . . . . . . . . . . . . . . . . . Miscellaneous . | . . . . . . . . . . . . . . . . . Route ------- -11/Scrapyard -10/Materials (discovered 3 exits: [*Mat x2] / *Min) -10/Mines (discovered 3 exits: [*Mat x2] / *Exi) -10/Exiles -9/Mines (discovered 2 exits: *Mat x2) -8/Materials (discovered 2 exits: *Fac / *Sto) -7/Factory -6/Factory (discovered 2 exits: *Fac x2) -5/Factory (discovered 3 exits: *Fac / Upp x2) -4/Factory (discovered 2 exits: [*Upp] / *Ext) -4/Extension (discovered 2 exits: *Res / *Cet) -4/Cetus (discovered 2 exits: *Res / *Arc) -4/Archives -4/Hub_04(d) -3/Research -2/Research -2/Testing History --------- Turn | Location | Event 5 | -11/Scrapyard | Discovered new exit (range 16) 96 | -11/Scrapyard | Entered Materials 262 | -10/Materials | Discovered new exit (range 15) 318 | -10/Materials | Build established: Mutant 368 | -10/Materials | Discovered new exit (range 9) 607 | -10/Materials | Discovered new exit (range 3) 965 | -10/Materials | Identified exit to Mines 1105 | -10/Materials | Entered Mines 1129 | -10/Mines | Discovered new exit (range 14) 1135 | -10/Mines | Deemed a non-threat by the Exiles lab entrance 1137 | -10/Mines | Discovered new exit (range 5) 1269 | -10/Mines | Discovered new exit (range 9) 1319 | -10/Mines | Learned location of Zion (-7) 2085 | -10/Mines | Entered Exiles 2132 | -10/Exiles | Met 8R-AWN 2160 | -10/Exiles | Met EX-HEX 2247 | -10/Exiles | Met EX-DEC 2349 | -10/Exiles | Visited The Gauntlet 2600 | -10/Exiles | Met EX-BIN 2618 | -10/Exiles | Aligned with FarCom system 2619 | -10/Exiles | Given EX-Vault access code 2674 | -10/Exiles | Opened EX-Vault 2689 | -10/Exiles | Found AWS/Gauss 2730 | -10/Exiles | Warned to stay clear of 0b10 Research branches 2828 | -10/Exiles | Discovered new exit (range 14) 2844 | -10/Exiles | Left Exiles lab with AWS/Gauss 2844 | -10/Exiles | Entered Mines 2967 | -9/Mines | Assisted by bots powering up and referring to "LRC-V3" 3101 | -9/Mines | Found a damaged Exp. Sensor Array with a note attached 3134 | -9/Mines | Found a hidden stash of uninstalled traps 3150 | -9/Mines | Assembled infested the area 3155 | -9/Mines | Assisted by a Guerilla fighting off Assembled 3187 | -9/Mines | Discovered new exit (range 10) 3313 | -9/Mines | Discovered new exit (range 12) 3393 | -9/Mines | Learned Materials emergency access door positions 3806 | -9/Mines | Entered Materials 3806 | -8/Materials | Evolved 4 slots: Propulsion x2, Utility x2 3807 | -8/Materials | Identified exit to Storage 4119 | -8/Materials | Garrison activated, responded to threat 4123 | -8/Materials | Build established: Hacker-Mutant 4246 | -8/Materials | Destroyed 7 combat bots 4275 | -8/Materials | Garrison activated, responded to threat 4606 | -8/Materials | First assault squad dispatched 5071 | -8/Materials | Lost 3 parts (2n1u) 5124 | -8/Materials | Repaired Broken Assault Cannon 5295 | -8/Materials | Discovered new exit (range 8) 5326 | -8/Materials | Entered Factory 5326 | -7/Factory | Evolved 2 slots: Utility x1, Weapon x1 5619 | -7/Factory | Build established: Skirmisher 6215 | -7/Factory | Build established: Mutant 6752 | -7/Factory | Fabricated Gravmag System (x2) 6897 | -7/Factory | Repaired Mic. Nuclear Core 6922 | -7/Factory | Build established: Hacker-Mutant 7168 | -7/Factory | Discovered new exit (range 16) 7218 | -7/Factory | Entered another Factory area 7218 | -6/Factory | Evolved 2 slots: Power x1, Utility x1 8109 | -6/Factory | Repaired Gravmag System 8495 | -6/Factory | Discovered new exit (range 5) 8962 | -6/Factory | Spotted B-75 Beast 9502 | -6/Factory | Fabricated Gravmag Array (x1) 9563 | -6/Factory | Fabricated Gravmag Array (x1) 9661 | -6/Factory | Fabricated G-50 Soldier? 9803 | -6/Factory | Local fabrication network quarantined 9836 | -6/Factory | Discovered new exit (range 16) 10487 | -6/Factory | Entered another Factory area 10487 | -5/Factory | Evolved 2 slots: Propulsion x1, Utility x1 11026 | -5/Factory | Fabricated Hvy. Neutron Cannon (x2) 11557 | -5/Factory | System corruption reached 10% 11639 | -5/Factory | Lost 5 parts (2n1u2w) 11786 | -5/Factory | Identified exit to Upper Caves 11855 | -5/Factory | Fabricated Gravmag Array (x1) 11884 | -5/Factory | Lost 7 parts (1p2n2u2w) 12415 | -5/Factory | Discovered new exit (range 16) 12420 | -5/Factory | Spotted B-75 Beast 12423 | -5/Factory | Entered another Factory area 12423 | -4/Factory | Evolved 2 slots: Propulsion x1, Utility x1 12503 | -4/Factory | Discovered new exit (range 5) 12819 | -4/Factory | Lost 3 parts (1p1u1w) 12907 | -4/Factory | Discovered new exit (range 15) 12946 | -4/Factory | Repaired Fission Core 13083 | -4/Factory | Entered Extension 13142 | -4/Extension | Spotted B-86 Titan 13215 | -4/Extension | Rescued a captive Derelict 13216 | -4/Extension | Rescued a captive Derelict 13230 | -4/Extension | Rescued a captive Derelict 13302 | -4/Extension | Rescued a captive Derelict 13304 | -4/Extension | Rescued a captive Derelict 13330 | -4/Extension | Rescued a captive Derelict 13333 | -4/Extension | Rescued a captive Derelict 13338 | -4/Extension | Rescued a captive Derelict 13339 | -4/Extension | Rescued a captive Derelict 13343 | -4/Extension | Build established: Scavenger-Mutant 13345 | -4/Extension | Rescued a captive Derelict 13443 | -4/Extension | Spotted B-86 Titan 13493 | -4/Extension | Rescued a captive Derelict 13495 | -4/Extension | Rescued a captive Derelict 13545 | -4/Extension | Lost 4 parts (2n2u) 13667 | -4/Extension | Rescued A7 13672 | -4/Extension | Lost 3 parts (1p1n1w) 13729 | -4/Extension | Rescued a captive Derelict 13730 | -4/Extension | Rescued a captive Derelict 13770 | -4/Extension | Discovered new exit (range 10) 13773 | -4/Extension | Discovered new exit (range 6) 13807 | -4/Extension | Entered Cetus 13807 | -4/Cetus | Accompanied by 3 allies (A7) 13812 | -4/Cetus | Acquired a Cetus Manufacturing Module code from A7 13820 | -4/Cetus | Spotted Cetus Guard 13820 | -4/Cetus | Spotted Cetus Guard 13822 | -4/Cetus | Spotted Cetus Guard 13824 | -4/Cetus | Destroyed Cetus Guard 13824 | -4/Cetus | Spotted Cetus Guard 13827 | -4/Cetus | Destroyed Cetus Guard 13832 | -4/Cetus | Destroyed Cetus Guard 13887 | -4/Cetus | Started Cetus Manufacturing Module 13899 | -4/Cetus | Escorted A7 to Cetus Mainframe 13912 | -4/Cetus | Manufactured an Enhanced Grunt 13921 | -4/Cetus | Discovered new exit (range 18) 13937 | -4/Cetus | Manufactured an Enhanced Grunt 13962 | -4/Cetus | Manufactured an Enhanced Grunt 13977 | -4/Cetus | Discovered new exit (range 17) 13984 | -4/Cetus | Spotted Cetus Guard 13987 | -4/Cetus | Manufactured an Enhanced Grunt 14012 | -4/Cetus | Manufactured an Enhanced Grunt 14014 | -4/Cetus | Spotted Cetus Guard 14014 | -4/Cetus | Spotted Cetus Guard 14014 | -4/Cetus | Spotted Cetus Guard 14021 | -4/Cetus | Entered Archives 14040 | -4/Archives | Met Zhirov 14045 | -4/Archives | Unable to access archive contents 14046 | -4/Archives | Reinforcements dispatched to Archives 14049 | -4/Archives | Discovered new exit (range 17) 14071 | -4/Archives | Entered Hub_04(d) 14142 | -4/Hub_04(d) | Discovered new exit (range 13) 14170 | -4/Hub_04(d) | Entered Research 14170 | -3/Research | Evolved 2 slots: Utility x2 14237 | -3/Research | Fabricated Gravmag Array (x1) 14287 | -3/Research | Fabricated Gravmag Array (x1) 14385 | -3/Research | Found Prototype Processor 14385 | -3/Research | Identified Spectral Analyzer 14444 | -3/Research | Found Prototype Launcher 14445 | -3/Research | Identified Tesla Bomb Launcher 14793 | -3/Research | Build established: Infiltrator-Mutant 15003 | -3/Research | Discovered new exit (range 20) 15168 | -3/Research | Entered another Research area 15168 | -2/Research | Evolved 2 slots: Power x1, Utility x1 15357 | -2/Research | Spotted B-90 Cyclops 15476 | -2/Research | Build established: Generator-Mutant 15484 | -2/Research | Discovered new exit (range 12) 15566 | -2/Research | Found Prototype Launcher 15566 | -2/Research | Identified Gui. Micro-nuke Launcher 15615 | -2/Research | Entered Testing 15616 | -2/Testing | Maximum security lockdown engaged 15678 | -2/Testing | Found Enh. Force Lance 15792 | -2/Testing | Destroyed 8 combat bots 15810 | -2/Testing | Found Enh. Force Lance 15812 | -2/Testing | Found Enh. Force Lance 15845 | -2/Testing | Spotted Executioner 15849 | -2/Testing | Spotted Investigator 15852 | -2/Testing | Scanned by Researcher 15867 | -2/Testing | Self-destructed Last Messages --------------- P-80 Master stasis bubble strength at 189. P-80 Master stasis bubble strength at 123. G-73 Enforcer stasis bubble strength at 16. P-80 Master stasis bubble strength at 178. Held in stasis. H-88 Terminator stasis bubble strength at 39. P-80 Master stasis bubble strength at 112. G-73 Enforcer stasis bubble bursts. G-73 Enforcer stasis bubble strength at 85. P-80 Master stasis bubble strength at 167. H-88 Terminator stasis bubble strength at 16. P-80 Master stasis bubble strength at 101. System corrupted: Heat flow error (+260). G-73 Enforcer stasis bubble strength at 62. P-80 Master stasis bubble strength at 156. H-88 Terminator stasis bubble bursts. P-80 Master stasis bubble strength at 90. [Achievement: 5k Club] [Achievement: 10k Club] [Achievement: 20k Club] Map ----- +----------------------------------------------------+ | # ! # ## ##??????????????????????????????????? | | ## # #???????????????????????????????????? | | ## ##???????????????????????????????????? | | ##????????????????????????????????????? | | # ##????????????????????????????????????? | | ##????""""???????????????????????????? | | %% ! # #??? """????????????????????????????? | | = =%= ##"" ? ??????????????????????????? | | / # #?? ??????????????????????? | | "## #####+### ?????????????????????? | | """ "% #????????????????????? | | """ " " #????????????????????? | | # """ "%" #????????????????????? | | "%" #????????????????????? | | "%" #####???????????????????????? | | " " #???????????????????????????? | | "%" #???????????????????????????? | | " llEl #???????????????????????????? | | """ """ """ """g"""p #???????????????????????????? | | """ """ """ """g"""bg#???????????????????????????? | | """ """ """w""" """ #???????????????????????????? | | """ """ """g"""b"""mg#???????????????????????????? | | """ """ """ """%"""w%############????????????????? | | """ """ """ """ """ =gg=g #????????????????? | | """ """ """g"""l"""hg!cgble #????????????????? | | %g%m i i phl@ #????????????????? | | b g gg gpg i +????????????????? | | ############################ #????????????????? | | #??????????????????????????? #????????????????? | | #???????????????????????????? #????????????????? | | #??????????????????????????C???#????????????????? | | #???????????????????????????????????????????????? | | #???????????????????????????????????????????????? | | #???????????????????????????????????????????????? | | #???????????????????????????????????????????????? | | #???????????????????????????????????????????????? | | #???????????????????????????????????????????????? | | ##???????????????????????????????????????????????? | | ?????????????????????????????????????????????????? | | ?????????????????????????????????????????????????? | | ?????????????????????????????????????????????????? | | ?????????????????????h???????????????????????????? | | ?????????????????????????????????????????????????? | | ??????????????????????h??????????????????????????? | | ?????????????????????????????????????????????????? | | ?????????????????????????????????????????????????? | | ?????????????????????????????????????????????????? | | ?????????????????????????????????????????????????? | | ?????????????????????????????????????????????????? | | ?????????????????????????????????????????????????? | +----------------------------------------------------+ Best States ------------- Heat Dissipation 49 Coolant Potential 100 Energy Generation 77 Energy Capacity 1010 Matter Stores 312 Matter Capacity 800 Sight Range 24 Terrain Scan Density 10 Jamming Range 16 Power Amplification 30 Additional Mass Support 6 Armor Coverage 225 Resistance: KI 45 Resistance: TH 20 Resistance: EX 20 Resistance: EM 20 Resistance: I 20 Resistance: S 20 Resistance: P 20 Weapon Cycling 20 Phase Shifting 10 Evasion (%) 68 Targeting Accuracy 8 Melee Accuracy 6 Core Analysis 10 Recoil Reduction 2 Offensive Hacking 30 Defensive Hacking 14 Item Schematics ----------------- Titanium Leg | -8/Materials | Scanalyzed Cesium-ion Thruster | -8/Materials | Scanalyzed Gravmag System | -7/Factory | Scanalyzed Lgt. Deuterium Engine | -7/Factory | Scanalyzed Spear | -7/Factory | Scanalyzed Recalibrator | -6/Factory | Scanalyzed Force Rifle | -6/Factory | Hacked Thermal Shield | -6/Factory | Hacked Hvy. Neutron Cannon | -6/Factory | Hacked Gravmag Array | -6/Factory | Scanalyzed Fission Core | -6/Factory | Scanalyzed Imp. Gravmag System | -6/Factory | Hacked Antigrav System | -5/Factory | Scanalyzed Lgt. Particle Reactor | -5/Factory | Hacked Adv. Cryofiber Web | -4/Extension | Hacked Cmb. Antigrav System | -2/Research | Scanalyzed Antigrav Array | -2/Research | Scanalyzed Robot Schematics ------------------ None Fabricated ------------ Gravmag System | x2 | -7/Factory Gravmag Array | x1 | -6/Factory Gravmag Array | x1 | -6/Factory G-50 Soldier | x3 | -6/Factory | Preloaded Hvy. Neutron Cannon | x2 | -5/Factory | Preloaded Gravmag Array | x1 | -5/Factory Gravmag Array | x1 | -3/Research Gravmag Array | x1 | -3/Research Alien Tech Used ----------------- None Achievements -------------- 10k Club 20k Club 5k Club Dangerous Findings Hey, That's Mine! Hunted Just What I Needed Leap Before You Look Made in Tau Ceti IV More Power To You My Command Is Your Wish Oops Please Form A Line Prison Break Project G-00 Prolific Hacker Respectable Loadout Rockin' Loadout Serviceable Loadout Significant Disruption Sniper System Compromised The More The Merrier Total Silence Tourist Challenges ------------ None Game ------ Seed MetafiberMatterDoublenader Manual? 0 Play Time 06:30:50 Cumulative 17.0 hours Start 2020.10.20 @ 19:34:21 End 2020.10.21 @ 19:31:12 Sessions 9 Manual Loads 0 Difficulty Adventurer Special Mode None Game No. 4 Rogue 0 Adventurer 4 Explorer 0 Win Type - Total 0 Types 0/0/0/0/0/0/0/0/0 Lore% 11 Gallery% 19 Achievement% 18 Wizard Run 0 Options --------- ASCII 0 Keyboard 0 Movement Numpad Keybinds 0 Fullscreen 1 Font 16/SmallcapsGlow Map View 76x50 Tactical HUD 0 Map Filters NONE Filters NONE Steam 1 RUN: f2eecdc9-6689-44f0-9112-8ce9944d1617